[Event "*** Titled Tuesday Blitz"]
[Site "Chess.com"]
[Date "2018.10.02"]
[Round "2"]
[White "ViktorMatviishen"]
[Black "farzadbfd"]
[Result "0-1"]
[WhiteElo "2475"]
[BlackElo "2549"]
[TimeControl "180+2"]
[EndTime "13:22:41 PDT"]
[Termination "farzadbfd won by resignation"]

1. d4 {[%clk 0:03:01.9]} 1... d5 {[%clk 0:03:00.8]} 2. c4 {[%clk 0:03:03.5]}
2... e6 {[%clk 0:03:02.2]} 3. Nf3 {[%clk 0:03:03.5]} 3... Nf6 {[%clk 0:03:03.6]}
4. g3 {[%clk 0:03:05.1]} 4... Bb4+ {[%clk 0:03:04.4]} 5. Bd2 {[%clk 0:03:05.6]}
5... Bd6 {[%clk 0:03:06.1]} 6. Nc3 {[%clk 0:03:05.5]} 6... c6 {[%clk 0:03:07.5]}
7. Qc2 {[%clk 0:03:06.2]} 7... O-O {[%clk 0:03:06.1]} 8. e4 {[%clk 0:03:04.4]}
8... dxe4 {[%clk 0:02:51.9]} 9. Nxe4 {[%clk 0:03:06.3]} 9... Nxe4 {[%clk
0:02:52.2]} 10. Qxe4 {[%clk 0:03:08.2]} 10... Nd7 {[%clk 0:02:53.5]} 11. Bg2
{[%clk 0:03:08.8]} 11... e5 {[%clk 0:02:49.4]} 12. O-O {[%clk 0:03:01.8]} 12...
Nf6 {[%clk 0:02:49.9]} 13. Qh4 {[%clk 0:02:47.6]} 13... exd4 {[%clk 0:02:40.1]}
14. Nxd4 {[%clk 0:02:46]} 14... Be5 {[%clk 0:02:14.6]} 15. Bc3 {[%clk
0:02:42.9]} 15... Ng4 {[%clk 0:02:15.2]} 16. Qxd8 {[%clk 0:02:32.5]} 16... Rxd8
{[%clk 0:02:17.1]} 17. Rad1 {[%clk 0:02:26.1]} 17... Bxd4 {[%clk 0:02:16.9]} 18.
Bxd4 {[%clk 0:02:22.6]} 18... Be6 {[%clk 0:02:17.9]} 19. b3 {[%clk 0:02:14.4]}
19... Nf6 {[%clk 0:02:04.1]} 20. Bxa7 {[%clk 0:02:03.7]} 20... Rxd1 {[%clk
0:02:00.7]} 21. Rxd1 {[%clk 0:02:05.6]} 21... Nd7 {[%clk 0:02:02]} 22. Be3
{[%clk 0:01:47.7]} 22... Rxa2 {[%clk 0:02:03.4]} 23. b4 {[%clk 0:01:46.3]} 23...
Bxc4 {[%clk 0:01:47.9]} 24. Bh3 {[%clk 0:01:43.2]} 24... Nf8 {[%clk 0:01:17.7]}
25. Bc5 {[%clk 0:01:43.3]} 25... Ne6 {[%clk 0:00:46.1]} 26. Bxe6 {[%clk
0:01:00.4]} 26... fxe6 {[%clk 0:00:48]} 27. Rd7 {[%clk 0:00:52.5]} 27... Bd5
{[%clk 0:00:48]} 28. f4 {[%clk 0:00:24.6]} 28... Rg2+ {[%clk 0:00:43.1]} 29. Kf1
{[%clk 0:00:26.1]} 29... Rxh2 {[%clk 0:00:44.4]} 30. Rxb7 {[%clk 0:00:26.4]}
30... Rg2 {[%clk 0:00:45]} 31. Bd6 {[%clk 0:00:20.8]} 31... Rxg3 {[%clk
0:00:44.9]} 32. Kf2 {[%clk 0:00:21.5]} 32... Rf3+ {[%clk 0:00:45.2]} 33. Ke2
{[%clk 0:00:22.6]} 33... h5 {[%clk 0:00:44.9]} 34. Be5 {[%clk 0:00:22.6]} 34...
Rg3 {[%clk 0:00:45.6]} 35. f5 {[%clk 0:00:24]} 35... Rg2+ {[%clk 0:00:47]} 36.
Ke3 {[%clk 0:00:25]} 36... exf5 {[%clk 0:00:48.7]} 37. Kf4 {[%clk 0:00:25.3]}
37... Be4 {[%clk 0:00:48.6]} 38. Rb8+ {[%clk 0:00:16]} 38... Kh7 {[%clk
0:00:49.3]} 39. Ke3 {[%clk 0:00:16.1]} 39... h4 {[%clk 0:00:49.9]} 40. Ra8
{[%clk 0:00:17.7]} 40... h3 {[%clk 0:00:49.3]} 41. Ra1 {[%clk 0:00:19.3]} 41...
g5 {[%clk 0:00:46]} 42. Rh1 {[%clk 0:00:20]} 42... g4 {[%clk 0:00:47.2]} 43. Kf4
{[%clk 0:00:20.9]} 43... Kg6 {[%clk 0:00:47.8]} 44. Rf1 {[%clk 0:00:21.5]} 44...
h2 {[%clk 0:00:43.7]} 45. Ke3 {[%clk 0:00:22.9]} 45... Rg1 {[%clk 0:00:44.5]}
0-1

[Event "*** Titled Tuesday Blitz"]
[Site "Chess.com"]
[Date "2018.10.02"]
[Round "2"]
[White "Bauxi435"]
[Black "ruvat"]
[Result "0-1"]
[WhiteElo "2424"]
[BlackElo "2310"]
[TimeControl "180+2"]
[EndTime "13:22:50 PDT"]
[Termination "ruvat won by checkmate"]

1. d4 {[%clk 0:03:01.9]} 1... d6 {[%clk 0:03:00.4]} 2. c4 {[%clk 0:03:02.5]}
2... e5 {[%clk 0:03:00.7]} 3. Nc3 {[%clk 0:03:02.1]} 3... exd4 {[%clk
0:03:00.7]} 4. Qxd4 {[%clk 0:03:03.5]} 4... Nc6 {[%clk 0:03:02.1]} 5. Qd2 {[%clk
0:03:04.6]} 5... Nf6 {[%clk 0:03:03]} 6. b3 {[%clk 0:03:02.8]} 6... a5 {[%clk
0:03:02.6]} 7. g3 {[%clk 0:03:02]} 7... a4 {[%clk 0:02:57.1]} 8. Rb1 {[%clk
0:03:02.8]} 8... axb3 {[%clk 0:02:54.6]} 9. axb3 {[%clk 0:03:04.7]} 9... g6
{[%clk 0:02:47.5]} 10. Bg2 {[%clk 0:03:05.4]} 10... Bg7 {[%clk 0:02:48.3]} 11.
Nh3 {[%clk 0:03:05.2]} 11... Bxh3 {[%clk 0:02:44]} 12. Bxh3 {[%clk 0:03:05.1]}
12... O-O {[%clk 0:02:44.6]} 13. Bg2 {[%clk 0:03:03.6]} 13... Re8 {[%clk
0:02:44.8]} 14. O-O {[%clk 0:03:04.1]} 14... Nd7 {[%clk 0:02:24.4]} 15. Bb2
{[%clk 0:03:01.1]} 15... Nc5 {[%clk 0:02:22.6]} 16. Qc2 {[%clk 0:02:54.8]} 16...
Nb4 {[%clk 0:02:20.6]} 17. Qd1 {[%clk 0:02:55.1]} 17... c6 {[%clk 0:02:17.7]}
18. Ra1 {[%clk 0:02:50.5]} 18... Qe7 {[%clk 0:02:12.8]} 19. Re1 {[%clk 0:02:44]}
19... Rxa1 {[%clk 0:02:11.9]} 20. Bxa1 {[%clk 0:02:34.7]} 20... Ra8 {[%clk
0:01:58.2]} 21. Bf3 {[%clk 0:02:26]} 21... Rxa1 {[%clk 0:01:53]} 22. Qxa1 {[%clk
0:02:27.9]} 22... Nc2 {[%clk 0:01:53.8]} 23. Qc1 {[%clk 0:02:27]} 23... Nxe1
{[%clk 0:01:53.4]} 24. Qxe1 {[%clk 0:02:27.7]} 24... Nxb3 {[%clk 0:01:54.4]} 25.
Ne4 {[%clk 0:02:26.2]} 25... Nd4 {[%clk 0:01:51.4]} 26. Bg2 {[%clk 0:02:23.3]}
26... f5 {[%clk 0:01:50.6]} 27. Nc3 {[%clk 0:02:24]} 27... Qe5 {[%clk
0:01:43.4]} 28. e3 {[%clk 0:02:22.9]} 28... Ne6 {[%clk 0:01:42.9]} 29. Ne2
{[%clk 0:02:22.2]} 29... Qa1 {[%clk 0:01:35.2]} 30. Qxa1 {[%clk 0:02:22.1]}
30... Bxa1 {[%clk 0:01:35.1]} 31. Kf1 {[%clk 0:02:22]} 31... Nc5 {[%clk
0:01:24.3]} 32. Ke1 {[%clk 0:02:20.1]} 32... Nd3+ {[%clk 0:01:24.3]} 33. Kf1
{[%clk 0:02:20.4]} 33... Ne5 {[%clk 0:01:23.9]} 34. c5 {[%clk 0:02:16.7]} 34...
dxc5 {[%clk 0:01:23.7]} 35. Nf4 {[%clk 0:02:17.8]} 35... Kf7 {[%clk 0:01:21.8]}
36. Ke2 {[%clk 0:02:16.5]} 36... Bc3 {[%clk 0:01:20.3]} 37. h3 {[%clk
0:02:09.9]} 37... Ke7 {[%clk 0:01:20]} 38. e4 {[%clk 0:02:04.6]} 38... fxe4
{[%clk 0:01:10.3]} 39. Bxe4 {[%clk 0:02:05.6]} 39... Kd6 {[%clk 0:01:08.6]} 40.
h4 {[%clk 0:02:05.1]} 40... b5 {[%clk 0:01:09.1]} 41. h5 {[%clk 0:02:03.6]}
41... g5 {[%clk 0:01:02.5]} 42. Nh3 {[%clk 0:01:40.7]} 42... h6 {[%clk
0:01:01.7]} 43. f4 {[%clk 0:01:41.3]} 43... gxf4 {[%clk 0:01:00.1]} 44. gxf4
{[%clk 0:01:43.2]} 44... Ng4 {[%clk 0:00:58.7]} 45. Bf5 {[%clk 0:01:42]} 45...
Nf6 {[%clk 0:00:57.2]} 46. Bg6 {[%clk 0:01:43]} 46... c4 {[%clk 0:00:57]} 47.
Nf2 {[%clk 0:01:43.3]} 47... b4 {[%clk 0:00:56.2]} 48. Nd1 {[%clk 0:01:42]}
48... Bd4 {[%clk 0:00:56]} 49. Kd2 {[%clk 0:01:43]} 49... c5 {[%clk 0:00:55.5]}
50. Ne3 {[%clk 0:01:40]} 50... Bxe3+ {[%clk 0:00:54]} 51. Kxe3 {[%clk
0:01:41.9]} 51... c3 {[%clk 0:00:50.6]} 52. Kd3 {[%clk 0:01:42.5]} 52... Nd5
{[%clk 0:00:47.5]} 53. f5 {[%clk 0:01:42]} 53... Ke5 {[%clk 0:00:48.1]} 54. f6
{[%clk 0:01:40.3]} 54... Nxf6 {[%clk 0:00:37.1]} 55. Kc4 {[%clk 0:01:40.8]}
55... Ne4 {[%clk 0:00:36.6]} 56. Kd3 {[%clk 0:01:40.2]} 56... c4+ {[%clk
0:00:32.8]} 57. Kc2 {[%clk 0:01:41.2]} 57... b3+ {[%clk 0:00:33.2]} 58. Kc1
{[%clk 0:01:42.5]} 58... c2 {[%clk 0:00:30]} 59. Bh7 {[%clk 0:01:39.2]} 59...
Kd4 {[%clk 0:00:30]} 60. Bg6 {[%clk 0:01:39.2]} 60... Kc3 {[%clk 0:00:29.7]} 61.
Bxe4 {[%clk 0:01:40.3]} 61... b2# {[%clk 0:00:30.4]} 0-1

[Event "*** Titled Tuesday Blitz"]
[Site "Chess.com"]
[Date "2018.10.02"]
[Round "2"]
[White "Kouzari"]
[Black "saraswathii"]
[Result "1-0"]
[WhiteElo "2475"]
[BlackElo "2305"]
[TimeControl "180+2"]
[EndTime "13:22:52 PDT"]
[Termination "Kouzari won by resignation"]

1. d4 {[%clk 0:03:01.5]} 1... Nf6 {[%clk 0:02:59.3]} 2. c4 {[%clk 0:03:02.9]}
2... g6 {[%clk 0:03:00.1]} 3. Nc3 {[%clk 0:03:01.5]} 3... d6 {[%clk 0:03:01.3]}
4. e4 {[%clk 0:03:02.7]} 4... Bg7 {[%clk 0:03:01.8]} 5. Be2 {[%clk 0:03:04.2]}
5... O-O {[%clk 0:03:01.9]} 6. Be3 {[%clk 0:03:05.6]} 6... Nfd7 {[%clk
0:03:02.7]} 7. h4 {[%clk 0:03:03.5]} 7... h5 {[%clk 0:03:01.2]} 8. g4 {[%clk
0:03:02.4]} 8... hxg4 {[%clk 0:03:01.6]} 9. h5 {[%clk 0:03:03.9]} 9... Nf6
{[%clk 0:02:59.9]} 10. hxg6 {[%clk 0:03:03.5]} 10... fxg6 {[%clk 0:03:01.8]} 11.
Qd2 {[%clk 0:02:40]} 11... e5 {[%clk 0:02:55.4]} 12. Bh6 {[%clk 0:02:27.1]}
12... exd4 {[%clk 0:02:52]} 13. Bxg7 {[%clk 0:02:28.3]} 13... Kxg7 {[%clk
0:02:42.1]} 14. Qh6+ {[%clk 0:02:28.2]} 14... Kf7 {[%clk 0:02:42.6]} 15. Nd5
{[%clk 0:02:25.3]} 15... Nbd7 {[%clk 0:02:31.6]} 16. O-O-O {[%clk 0:02:21]}
16... Ne5 {[%clk 0:02:23.6]} 17. Rxd4 {[%clk 0:02:17.8]} 17... Be6 {[%clk
0:02:17.2]} 18. f4 {[%clk 0:02:17.5]} 18... gxf3 {[%clk 0:02:15.9]} 19. Nxf3
{[%clk 0:02:18.5]} 19... Nxf3 {[%clk 0:02:12.4]} 20. Bxf3 {[%clk 0:02:19.1]}
20... Bxd5 {[%clk 0:02:12.8]} 21. cxd5 {[%clk 0:01:38.1]} 21... Qe7 {[%clk
0:02:06.1]} 22. Rg1 {[%clk 0:01:31.4]} 22... Rg8 {[%clk 0:02:02]} 23. Rc4 {[%clk
0:01:27.3]} 23... Raf8 {[%clk 0:01:52.3]} 24. Kb1 {[%clk 0:01:09.9]} 24... Rg7
{[%clk 0:01:37.4]} 25. a4 {[%clk 0:01:04.6]} 25... Rfg8 {[%clk 0:01:26.7]} 26.
Ka2 {[%clk 0:01:03.3]} 26... a6 {[%clk 0:01:26.1]} 27. Bg4 {[%clk 0:00:56.4]}
27... Nxg4 {[%clk 0:01:22]} 28. Rxg4 {[%clk 0:00:57.4]} 28... Ke8 {[%clk
0:01:16.1]} 29. Rg2 {[%clk 0:00:51.2]} 29... Qe5 {[%clk 0:01:03.4]} 30. Rgc2
{[%clk 0:00:42.4]} 30... Kd8 {[%clk 0:01:00.8]} 31. Qc1 {[%clk 0:00:43]} 31...
Qe7 {[%clk 0:00:58.4]} 32. Qe3 {[%clk 0:00:43.9]} 32... Qd7 {[%clk 0:00:30.2]}
33. Qa7 {[%clk 0:00:38]} 33... b6 {[%clk 0:00:26.1]} 34. Qxa6 {[%clk 0:00:30.2]}
34... g5 {[%clk 0:00:26.6]} 35. Rxc7 {[%clk 0:00:30.2]} 35... Qxc7 {[%clk
0:00:25.3]} 36. Qa8+ {[%clk 0:00:28.1]} 36... Kd7 {[%clk 0:00:22.1]} 37. Rxc7+
{[%clk 0:00:28.4]} 37... Kxc7 {[%clk 0:00:24]} 38. Qc6+ {[%clk 0:00:29.7]} 38...
Kb8 {[%clk 0:00:21.7]} 39. Qxd6+ {[%clk 0:00:28.5]} 39... Ka7 {[%clk 0:00:21.4]}
40. Qg3 {[%clk 0:00:25.7]} 40... g4 {[%clk 0:00:22.1]} 41. e5 {[%clk 0:00:27.1]}
41... Rd7 {[%clk 0:00:22.9]} 42. e6 {[%clk 0:00:23]} 42... Rxd5 {[%clk 0:00:23]}
43. Qc7+ {[%clk 0:00:24]} 1-0

[Event "*** Titled Tuesday Blitz"]
[Site "Chess.com"]
[Date "2018.10.02"]
[Round "2"]
[White "pedromartinez91"]
[Black "TST2014"]
[Result "1/2-1/2"]
[WhiteElo "2366"]
[BlackElo "2469"]
[TimeControl "180+2"]
[EndTime "13:22:59 PDT"]
[Termination "Game drawn by repetition"]

1. e4 {[%clk 0:03:01.9]} 1... c5 {[%clk 0:02:59.8]} 2. Nf3 {[%clk 0:03:02.5]}
2... Nc6 {[%clk 0:02:59.9]} 3. Bb5 {[%clk 0:03:02.4]} 3... g6 {[%clk 0:02:59.9]}
4. O-O {[%clk 0:03:02.7]} 4... Bg7 {[%clk 0:03:00.5]} 5. Bxc6 {[%clk 0:03:03.3]}
5... dxc6 {[%clk 0:03:00.5]} 6. d3 {[%clk 0:03:05.2]} 6... Nf6 {[%clk
0:02:56.7]} 7. h3 {[%clk 0:03:01.3]} 7... O-O {[%clk 0:02:57.4]} 8. Nc3 {[%clk
0:03:00.4]} 8... b6 {[%clk 0:02:53.7]} 9. Be3 {[%clk 0:02:55.1]} 9... Nd7 {[%clk
0:02:52.5]} 10. Qd2 {[%clk 0:02:55.5]} 10... e5 {[%clk 0:02:49.5]} 11. Bh6
{[%clk 0:02:56.1]} 11... Re8 {[%clk 0:02:47.2]} 12. Bxg7 {[%clk 0:02:56.4]}
12... Kxg7 {[%clk 0:02:48.3]} 13. Nh2 {[%clk 0:02:58.1]} 13... Nf8 {[%clk
0:02:34.9]} 14. f4 {[%clk 0:02:57]} 14... exf4 {[%clk 0:02:33.6]} 15. Qxf4
{[%clk 0:02:56.9]} 15... f6 {[%clk 0:02:32.4]} 16. Rf2 {[%clk 0:02:49.5]} 16...
Ne6 {[%clk 0:02:32.5]} 17. Qh4 {[%clk 0:02:48.9]} 17... f5 {[%clk 0:02:29.4]}
18. Qxd8 {[%clk 0:02:47.9]} 18... Nxd8 {[%clk 0:02:30.4]} 19. exf5 {[%clk
0:02:40.6]} 19... Bxf5 {[%clk 0:02:30.2]} 20. g4 {[%clk 0:02:42.2]} 20... Bd7
{[%clk 0:02:26.9]} 21. Raf1 {[%clk 0:02:42.1]} 21... Be6 {[%clk 0:02:20.9]} 22.
Nf3 {[%clk 0:02:38]} 22... Nf7 {[%clk 0:02:19.9]} 23. b3 {[%clk 0:02:33.3]}
23... Re7 {[%clk 0:02:14.6]} 24. Ne4 {[%clk 0:02:31.4]} 24... h6 {[%clk
0:02:10.1]} 25. Kh2 {[%clk 0:02:22.7]} 25... Bd5 {[%clk 0:02:10.4]} 26. Nfd2
{[%clk 0:02:12.3]} 26... Rd8 {[%clk 0:01:57]} 27. Kg3 {[%clk 0:02:11.2]} 27...
Ne5 {[%clk 0:01:49.6]} 28. Nf6 {[%clk 0:02:01.5]} 28... Bf7 {[%clk 0:01:45.7]}
29. Nde4 {[%clk 0:01:56.7]} 29... Nd7 {[%clk 0:01:30.5]} 30. h4 {[%clk
0:01:39.4]} 30... Nxf6 {[%clk 0:01:30.1]} 31. Rxf6 {[%clk 0:01:39.9]} 31... Bd5
{[%clk 0:01:26.7]} 32. h5 {[%clk 0:01:30.4]} 32... Bxe4 {[%clk 0:01:27.3]} 33.
dxe4 {[%clk 0:01:30.8]} 33... gxh5 {[%clk 0:01:28]} 34. gxh5 {[%clk 0:01:31.7]}
34... Rd2 {[%clk 0:01:16.2]} 35. Rg6+ {[%clk 0:01:29.2]} 35... Kh7 {[%clk
0:01:16.6]} 36. Rff6 {[%clk 0:01:28.8]} 36... Rxc2 {[%clk 0:01:14.1]} 37. Rxh6+
{[%clk 0:01:29.8]} 37... Kg7 {[%clk 0:01:15.2]} 38. Rhg6+ {[%clk 0:01:25.9]}
38... Kh7 {[%clk 0:01:15.4]} 39. Rh6+ {[%clk 0:01:08.5]} 39... Kg7 {[%clk
0:01:15.9]} 40. Rfg6+ {[%clk 0:01:10.4]} 40... Kf7 {[%clk 0:01:13.6]} 41. Rh7+
{[%clk 0:01:07.4]} 41... Ke8 {[%clk 0:01:09.6]} 42. Rxe7+ {[%clk 0:01:07.3]}
42... Kxe7 {[%clk 0:01:10.7]} 43. Rg7+ {[%clk 0:01:09.2]} 43... Kf6 {[%clk
0:01:07.4]} 44. Rxa7 {[%clk 0:01:11.1]} 44... c4 {[%clk 0:01:03.2]} 45. bxc4
{[%clk 0:01:09.1]} 45... Rxc4 {[%clk 0:01:02.9]} 46. Kf4 {[%clk 0:01:11]} 46...
Rc5 {[%clk 0:00:55.7]} 47. Ra6 {[%clk 0:01:08.6]} 47... Rxh5 {[%clk 0:00:54]}
48. Rxb6 {[%clk 0:01:08.3]} 48... Rh4+ {[%clk 0:00:55.3]} 49. Ke3 {[%clk
0:01:09]} 49... Ke5 {[%clk 0:00:55.5]} 50. Rxc6 {[%clk 0:01:03.5]} 50... Rh3+
{[%clk 0:00:56.5]} 51. Kd2 {[%clk 0:01:02.8]} 51... Rh2+ {[%clk 0:00:56]} 52.
Kd3 {[%clk 0:01:02.6]} 52... Rxa2 {[%clk 0:00:57]} 53. Rc5+ {[%clk 0:01:02.8]}
53... Kd6 {[%clk 0:00:58]} 54. Rh5 {[%clk 0:01:01.8]} 54... Ra3+ {[%clk
0:00:56.9]} 55. Kd4 {[%clk 0:01:02.8]} 55... Ra4+ {[%clk 0:00:58]} 56. Ke3
{[%clk 0:01:04.1]} 56... Ra1 {[%clk 0:00:58.3]} 57. Rd5+ {[%clk 0:01:03.5]}
57... Ke6 {[%clk 0:00:59.4]} 58. Rb5 {[%clk 0:01:04.3]} 58... Re1+ {[%clk
0:00:59.3]} 59. Kd4 {[%clk 0:01:05.5]} 59... Rd1+ {[%clk 0:01:00.4]} 60. Ke3
{[%clk 0:01:06.7]} 60... Re1+ {[%clk 0:01:01.7]} 61. Kf3 {[%clk 0:01:08.1]}
61... Rf1+ {[%clk 0:01:02.8]} 62. Ke2 {[%clk 0:01:09.4]} 62... Ra1 {[%clk
0:01:03.4]} 63. Ke3 {[%clk 0:01:04.4]} 63... Re1+ {[%clk 0:01:03.3]} 1/2-1/2

[Event "*** Titled Tuesday Blitz"]
[Site "Chess.com"]
[Date "2018.10.02"]
[Round "2"]
[White "W_Amadeus"]
[Black "Anton_Demchenko"]
[Result "0-1"]
[WhiteElo "2615"]
[BlackElo "2831"]
[TimeControl "180+2"]
[EndTime "13:23:13 PDT"]
[Termination "Anton_Demchenko won by resignation"]

1. e4 {[%clk 0:03:01.9]} 1... e5 {[%clk 0:02:58.9]} 2. Nf3 {[%clk 0:03:03]} 2...
Nc6 {[%clk 0:03:00.3]} 3. Bb5 {[%clk 0:03:04.6]} 3... a6 {[%clk 0:03:00.9]} 4.
Ba4 {[%clk 0:03:05.8]} 4... Nge7 {[%clk 0:03:02.2]} 5. c3 {[%clk 0:03:06.2]}
5... d6 {[%clk 0:03:02.7]} 6. d4 {[%clk 0:03:06.7]} 6... Bd7 {[%clk 0:03:03.2]}
7. O-O {[%clk 0:03:04.7]} 7... h6 {[%clk 0:03:04.2]} 8. d5 {[%clk 0:02:41.3]}
8... Nb8 {[%clk 0:03:04.4]} 9. c4 {[%clk 0:02:42.8]} 9... Ng6 {[%clk 0:03:03]}
10. Nc3 {[%clk 0:02:40.2]} 10... Be7 {[%clk 0:03:03.6]} 11. Ne1 {[%clk
0:02:08.6]} 11... O-O {[%clk 0:02:56.2]} 12. Bxd7 {[%clk 0:02:05.6]} 12... Nxd7
{[%clk 0:02:56.9]} 13. b3 {[%clk 0:01:39.9]} 13... Nf6 {[%clk 0:02:35.1]} 14.
Nd3 {[%clk 0:01:37.1]} 14... Qd7 {[%clk 0:02:35.6]} 15. Be3 {[%clk 0:01:24.2]}
15... Ng4 {[%clk 0:02:33.3]} 16. Bd2 {[%clk 0:01:25.3]} 16... f5 {[%clk
0:02:30.1]} 17. f3 {[%clk 0:01:23.2]} 17... Nf6 {[%clk 0:02:31]} 18. Qe2 {[%clk
0:01:21.8]} 18... f4 {[%clk 0:02:28.6]} 19. Be1 {[%clk 0:01:11]} 19... Nh7
{[%clk 0:02:20.2]} 20. Kh1 {[%clk 0:01:07.7]} 20... Bh4 {[%clk 0:02:18.8]} 21.
c5 {[%clk 0:01:05.7]} 21... Bxe1 {[%clk 0:02:16.4]} 22. Raxe1 {[%clk 0:00:59.4]}
22... Rf7 {[%clk 0:02:16.9]} 23. Qf2 {[%clk 0:00:58.4]} 23... Ne7 {[%clk
0:02:10.3]} 24. Rc1 {[%clk 0:00:58.7]} 24... g5 {[%clk 0:02:07.5]} 25. cxd6
{[%clk 0:00:56.8]} 25... cxd6 {[%clk 0:02:08.4]} 26. Na4 {[%clk 0:00:58]} 26...
Raf8 {[%clk 0:02:09.4]} 27. Nb6 {[%clk 0:00:46.4]} 27... Qd8 {[%clk 0:02:10.4]}
28. Rc2 {[%clk 0:00:42.7]} 28... Rg7 {[%clk 0:02:07.4]} 29. Rfc1 {[%clk
0:00:42.3]} 29... Ng6 {[%clk 0:02:07.3]} 30. Rc8 {[%clk 0:00:41.2]} 30... Qf6
{[%clk 0:02:08.4]} 31. Rxf8+ {[%clk 0:00:41.7]} 31... Ngxf8 {[%clk 0:02:04.9]}
32. Qe2 {[%clk 0:00:33.4]} 32... h5 {[%clk 0:02:05.3]} 33. Nf2 {[%clk
0:00:34.2]} 33... Qd8 {[%clk 0:02:01.4]} 34. Na4 {[%clk 0:00:28.1]} 34... Nf6
{[%clk 0:01:58.7]} 35. Qc2 {[%clk 0:00:26]} 35... g4 {[%clk 0:01:03.7]} 36. Nd3
{[%clk 0:00:27]} 36... h4 {[%clk 0:00:57.8]} 37. Qc8 {[%clk 0:00:26.7]} 37...
Qe7 {[%clk 0:00:57]} 38. Qf5 {[%clk 0:00:13.7]} 38... h3 {[%clk 0:00:36.3]} 39.
gxh3 {[%clk 0:00:15.6]} 39... gxf3 {[%clk 0:00:37.7]} 40. Nb6 {[%clk 0:00:17.2]}
40... N6h7 {[%clk 0:00:18.6]} 41. Rc8 {[%clk 0:00:10.6]} 41... Rg5 {[%clk
0:00:15.7]} 42. Rxf8+ {[%clk 0:00:05.1]} 42... Nxf8 {[%clk 0:00:16.3]} 43. Qc8
{[%clk 0:00:06.4]} 43... Qg7 {[%clk 0:00:15.7]} 0-1

[Event "*** Titled Tuesday Blitz"]
[Site "Chess.com"]
[Date "2018.10.02"]
[Round "2"]
[White "51616516516"]
[Black "evgenysharapov"]
[Result "0-1"]
[WhiteElo "2294"]
[BlackElo "2455"]
[TimeControl "180+2"]
[EndTime "13:23:18 PDT"]
[Termination "evgenysharapov won on time"]

1. d4 {[%clk 0:03:00.2]} 1... d5 {[%clk 0:03:00.5]} 2. c4 {[%clk 0:03:01.1]}
2... c6 {[%clk 0:03:01.2]} 3. Nc3 {[%clk 0:03:01.4]} 3... Nf6 {[%clk 0:03:01.7]}
4. Nf3 {[%clk 0:03:02.1]} 4... e6 {[%clk 0:03:02.3]} 5. Bg5 {[%clk 0:03:02.4]}
5... Nbd7 {[%clk 0:03:02.3]} 6. e3 {[%clk 0:03:03.1]} 6... Be7 {[%clk
0:03:02.9]} 7. Bd3 {[%clk 0:02:44.6]} 7... O-O {[%clk 0:03:02.8]} 8. O-O {[%clk
0:02:45.3]} 8... b6 {[%clk 0:03:03.4]} 9. b3 {[%clk 0:02:41]} 9... Bb7 {[%clk
0:03:03.7]} 10. Rc1 {[%clk 0:02:39.8]} 10... Rc8 {[%clk 0:03:03.9]} 11. Qe2
{[%clk 0:02:36]} 11... h6 {[%clk 0:03:03.7]} 12. Bh4 {[%clk 0:02:34.5]} 12... c5
{[%clk 0:03:04.4]} 13. Rfd1 {[%clk 0:02:29.7]} 13... cxd4 {[%clk 0:03:04.3]} 14.
Nxd4 {[%clk 0:02:19.1]} 14... a6 {[%clk 0:02:22.8]} 15. cxd5 {[%clk 0:02:19.3]}
15... Nxd5 {[%clk 0:02:22.2]} 16. Bxe7 {[%clk 0:02:17.5]} 16... Qxe7 {[%clk
0:02:06.9]} 17. Nxd5 {[%clk 0:02:17.1]} 17... Bxd5 {[%clk 0:02:03.9]} 18. Bxa6
{[%clk 0:02:06.6]} 18... Rxc1 {[%clk 0:01:59.9]} 19. Rxc1 {[%clk 0:02:07]} 19...
Qg5 {[%clk 0:01:51.2]} 20. f4 {[%clk 0:02:02.1]} 20... Qf6 {[%clk 0:01:49.2]}
21. Bc4 {[%clk 0:01:39.6]} 21... Ba8 {[%clk 0:01:47.9]} 22. Rd1 {[%clk
0:01:30.3]} 22... e5 {[%clk 0:01:45.8]} 23. Nf3 {[%clk 0:01:25.6]} 23... Qe7
{[%clk 0:01:35.1]} 24. Qd2 {[%clk 0:01:10]} 24... Bxf3 {[%clk 0:01:28.6]} 25.
gxf3 {[%clk 0:01:10.7]} 25... Nc5 {[%clk 0:01:28.5]} 26. fxe5 {[%clk 0:01:01.5]}
26... Qxe5 {[%clk 0:01:28.3]} 27. Qd4 {[%clk 0:00:53.1]} 27... Qf5 {[%clk
0:01:26]} 28. Kf2 {[%clk 0:00:30.5]} 28... Re8 {[%clk 0:01:16.7]} 29. Bd3 {[%clk
0:00:20.4]} 29... Qh3 {[%clk 0:00:34.3]} 30. Qf4 {[%clk 0:00:21.1]} 30... g5
{[%clk 0:00:27.3]} 31. Qg3 {[%clk 0:00:20]} 31... Qe6 {[%clk 0:00:27.2]} 32. f4
{[%clk 0:00:15]} 32... Qf6 {[%clk 0:00:18.8]} 33. h4 {[%clk 0:00:08.3]} 33...
Qb2+ {[%clk 0:00:15.3]} 34. Kg1 {[%clk 0:00:07.1]} 34... Nxd3 {[%clk 0:00:14.1]}
35. hxg5 {[%clk 0:00:06.2]} 35... h5 {[%clk 0:00:14.7]} 36. g6 {[%clk
0:00:04.5]} 36... f6 {[%clk 0:00:15.3]} 37. g7 {[%clk 0:00:03.3]} 37... Qe2
{[%clk 0:00:15.5]} 38. Rf1 {[%clk 0:00:03.6]} 38... Qxe3+ {[%clk 0:00:16.2]} 39.
Qxe3 {[%clk 0:00:04.4]} 39... Rxe3 {[%clk 0:00:17]} 0-1